fUSD/lending_fUSD_20240903
["ID","MTS","AMOUNT","RATE_DAILY","PERIOD"]
[337049180,1725378693516,-500.0,0.00014334,2]
[337049181,1725378693525,-500.0,0.00014334,2]
[337049182,1725378693536,-13055.36,0.00014335,2]
[337049183,1725378693546,-1821.12,0.00014335,2]
[337049184,1725378693556,-13055.36,0.00014335,2]
[337049185,1725378693580,-1821.12,0.00014335,2]
[337049186,1725378693597,-13055.36,0.00014335,2]
[337049187,1725378693613,-13055.36,0.00014335,2]
[337049188,1725378693629,-3212.13566405,0.00014335,2]
[337049189,1725378694465,-500.0,0.00014334,2]
[337049190,1725378694479,-2917.34393201,0.00014335,2]
[337049191,1725378694572,-6925.893813,0.00014335,2]
[337049192,1725378694587,-500.0,0.00014335,2]
[337049193,1725378694602,-500.0,0.00014335,2]
[337049194,1725378694618,-648.18176229,0.00014335,2]
[337049195,1725378694633,-1821.12,0.00014335,2]
[337049196,1725378694647,-1821.12,0.00014335,2]
[337049197,1725378694663,-1821.34063325,0.00014335,2]
[337049198,1725378694678,-2771.98,0.00014336,2]
[337049199,1725378694692,-594.68,0.00014336,2]
[337049200,1725378694706,-772.95,0.00014336,2]
[337049201,1725378694720,-594.68,0.00014336,2]
[337049202,1725378694734,-772.95,0.00014336,2]
[337049203,1725378694747,-594.68646252,0.00014336,2]
[337049204,1725378694762,-772.95,0.00014336,2]
[337049205,1725378694774,-1796.30059184,0.00014337,2]
[337049206,1725378694784,-2587.99,0.00014337,2]
[337049207,1725378694793,-2587.99,0.00014337,2]
[337049208,1725378694803,-2587.99,0.00014337,2]
[337049209,1725378694816,-2587.99,0.00014337,2]
[337049210,1725378694826,-2587.99,0.00014337,2]
[337049211,1725378694836,-2587.99,0.00014337,2]
[337049212,1725378694846,-2587.99,0.00014337,2]
[337049213,1725378694856,-2587.99,0.00014337,2]
[337049214,1725378694866,-2588.17651489,0.00014337,2]
[337049215,1725378694876,-503.91555033,0.00014337,2]
[337049216,1725378694886,-502.35545158,0.00014337,2]
[337049217,1725378694895,-500.0,0.00014337,2]
[337049218,1725378694905,-550.95852794,0.00014337,2]
[337049219,1725378694915,-503.23363628,0.00014337,2]
[337049220,1725378694924,-502.30980548,0.00014337,2]
[337049221,1725378694933,-298.32854025,0.00014337,2]
[337049222,1725378694943,-500.0,0.00014337,2]
[337049223,1725378694956,-182.12625536,0.00014337,2]
[337049224,1725378694965,-500.0,0.00014337,2]
[337049225,1725378694974,-234.06699622,0.00014337,2]
[337049226,1725378694984,-502.23320549,0.00014337,2]
[337049227,1725378694994,-2312.62,0.00014337,2]
[337049228,1725378695004,-2696.17,0.00014337,2]
[337049229,1725378695013,-2312.62,0.00014337,2]
[337049230,1725378695023,-503.19591929,0.00014337,2]
[337049231,1725378695033,-2696.17,0.00014337,2]
[337049232,1725378695042,-2312.62,0.00014337,2]
[337049233,1725378695052,-2696.17,0.00014337,2]
[337049234,1725378695064,-5131.09,0.00014337,2]
[337049235,1725378695073,-503.52903566,0.00014337,2]
[337049236,1725378695083,-2696.17,0.00014337,2]
[337049237,1725378695092,-5131.09,0.00014337,2]
[337049238,1725378695102,-500.0,0.00014337,2]
[337049239,1725378695113,-5131.09,0.00014337,2]
[337049240,1725378695122,-386.6634773,0.00014337,2]
[337049241,1725378695132,-2696.17,0.00014337,2]
[337049242,1725378695143,-5131.09,0.00014337,2]
[337049243,1725378695152,-2696.17,0.00014337,2]
[337049244,1725378695162,-2696.17,0.00014337,2]
[337049245,1725378695172,-2696.17,0.00014337,2]
[337049246,1725378695181,-2696.17,0.00014337,2]
[337049247,1725378695191,-2696.17,0.00014337,2]
[337049248,1725378695200,-2696.17,0.00014337,2]
[337049249,1725378695209,-2696.17,0.00014337,2]
[337049250,1725378695219,-2696.23870956,0.00014337,2]
[337049251,1725378695229,-3610.69,0.00014337,2]
[337049252,1725378695238,-504.10738189,0.00014337,2]
[337049253,1725378695247,-3610.69,0.00014337,2]
[337049254,1725378695257,-3610.69,0.00014337,2]
[337049255,1725378695267,-3610.69,0.00014337,2]
[337049256,1725378695277,-3610.69,0.00014337,2]
[337049257,1725378695287,-3610.69,0.00014337,2]
[337049258,1725378695296,-3610.69,0.00014337,2]
[337049259,1725378695305,-3610.69,0.00014337,2]
[337049260,1725378695316,-3610.69,0.00014337,2]
[337049261,1725378695326,-3610.69,0.00014337,2]
[337049262,1725378695335,-192.571495,0.00014337,2]
[337049263,1725378695344,-3610.69,0.00014337,2]
[337049264,1725378695354,-3610.69,0.00014337,2]
[337049265,1725378695364,-500.0,0.00014337,2]
[337049266,1725378695374,-3610.69965918,0.00014337,2]
[337049267,1725378695384,-500.0,0.00014337,2]
[337049268,1725378695393,-4850.34,0.00014337,2]
[337049269,1725378695403,-500.0,0.00014337,2]
[337049270,1725378695708,-4850.34,0.00014337,2]
[337049271,1725378695879,-4850.34,0.00014337,2]
[337049272,1725378695900,-4850.34,0.00014337,2]
[337049273,1725378695916,-4850.34,0.00014337,2]
[337049274,1725378695926,-501.9333988,0.00014337,2]
[337049275,1725378695937,-4850.34,0.00014337,2]
[337049276,1725378695947,-4850.34,0.00014337,2]
[337049277,1725378695959,-4850.34,0.00014337,2]
[337049278,1725378695970,-4850.34,0.00014337,2]
[337049279,1725378695979,-4850.34,0.00014337,2]
[337049280,1725378695989,-500.0,0.00014337,2]
[337049281,1725378696000,-500.0,0.00014337,2]
[337049282,1725378696010,-4850.34,0.00014337,2]
[337049283,1725378696019,-500.0,0.00014337,2]
[337049284,1725378696028,-4850.34,0.00014337,2]
[337049285,1725378696039,-500.0,0.00014337,2]
[337049286,1725378696049,-500.0,0.00014337,2]
[337049287,1725378696059,-502.35345161,0.00014337,2]
[337049288,1725378696070,-4850.48897351,0.00014337,2]
[337049289,1725378696079,-500.0,0.00014337,2]
[337049290,1725378696089,-192.571494,0.00014337,2]
[337049291,1725378696099,-498.02827791,0.00014337,2]
[337049292,1725378696110,-500.0,0.00014337,2]
[337049293,1725378696121,-502.33908576,0.00014337,2]
[337049294,1725378696130,-500.0,0.00014337,2]
[337049295,1725378696139,-355.74447054,0.00014337,2]
[337049296,1725378696148,-624.34,0.00014337,2]
[337049297,1725378696158,-502.20751671,0.00014337,2]
[337049298,1725378696167,-624.34,0.00014337,2]
[337049299,1725378696176,-624.34,0.00014337,2]
[337049300,1725378696186,-624.34,0.00014337,2]
[337049301,1725378696195,-624.34,0.00014337,2]
[337049302,1725378696204,-624.34,0.00014337,2]
[337049303,1725378696213,-624.34,0.00014337,2]
[337049304,1725378696223,-624.34,0.00014337,2]
[337049305,1725378696232,-624.34,0.00014337,2]
[337049306,1725378696242,-624.34,0.00014337,2]
[337049307,1725378696251,-624.34,0.00014337,2]
[337049308,1725378696260,-624.34,0.00014337,2]
[337049309,1725378696269,-624.43389348,0.00014337,2]
[337049310,1725378696278,-500.0,0.00014337,2]
[337049311,1725378696287,-3205.86,0.00014337,2]
[337049312,1725378696296,-500.0,0.00014337,2]
[337049313,1725378696306,-3205.86,0.00014337,2]
[337049314,1725378696318,-3205.86,0.00014337,2]
[337049315,1725378696327,-641.42406219,0.00014337,2]
[337049316,1725378696336,-502.99400048,0.00014337,2]
[337049317,1725378696346,-3205.86,0.00014337,2]
[337049318,1725378696355,-249.703578,0.00014337,2]
[337049319,1725378696364,-500.0,0.00014337,2]
[337049320,1725378696374,-500.0,0.00014337,2]
[337049321,1725378696383,-500.0,0.00014337,2]
[337049322,1725378696392,-462.30164596,0.00014337,2]
[337049323,1725378696401,-500.0,0.00014337,2]
[337049324,1725378696410,-206.96163759,0.00014337,2]
[337049325,1725378696419,-2273.62,0.00014337,2]
[337049326,1725378696428,-2273.62,0.00014337,2]
[337049327,1725378696437,-2273.62,0.00014337,2]
[337049328,1725378696447,-249.703571,0.00014337,2]
[337049329,1725378696456,-2273.62,0.00014337,2]
[337049330,1725378696465,-2273.62,0.00014337,2]
[337049331,1725378696474,-2273.62,0.00014337,2]
[337049332,1725378696484,-2273.62,0.00014337,2]
[337049333,1725378696493,-2273.62,0.00014337,2]
[337049334,1725378696502,-2273.62,0.00014337,2]
[337049335,1725378696512,-2273.62,0.00014337,2]
[337049336,1725378696521,-2273.62,0.00014337,2]
[337049337,1725378696530,-2273.62,0.00014337,2]
[337049338,1725378696539,-2273.68123507,0.00014337,2]
[337049339,1725378696549,-501.77581203,0.00014337,2]
[337049340,1725378696559,-500.0,0.00014337,2]
[337049341,1725378696571,-500.0,0.00014337,2]
[337049342,1725378696580,-27.60696201,0.00014337,2]
[337049343,1725378696612,-472.39303799,0.00014337,2]
[337049344,1725378696621,-500.0,0.00014337,2]
[337049345,1725378696631,-186.51,0.00014337,2]
[337049346,1725378696641,-739.33,0.00014337,2]
[337049347,1725378696650,-739.33,0.00014337,2]
[337049348,1725378696660,-739.33,0.00014337,2]
[337049349,1725378696669,-739.33,0.00014337,2]
[337049350,1725378696678,-739.33,0.00014337,2]
[337049351,1725378696687,-3887.27,0.00014337,2]
[337049352,1725378696697,-739.33,0.00014337,2]
[337049353,1725378696706,-739.33,0.00014337,2]
[337049354,1725378696715,-3887.27,0.00014337,2]
[337049355,1725378696725,-739.33,0.00014337,2]
[337049356,1725378696733,-3887.27,0.00014337,2]
[337049357,1725378696742,-500.0,0.00014337,2]
[337049358,1725378696751,-739.33,0.00014337,2]
[337049359,1725378696760,-500.0,0.00014337,2]
[337049360,1725378696769,-500.0,0.00014337,2]
[337049361,1725378696778,-500.0,0.00014337,2]
[337049362,1725378696787,-500.0,0.00014337,2]
[337049363,1725378696796,-739.33,0.00014337,2]
[337049364,1725378696806,-500.0,0.00014337,2]
[337049365,1725378696816,-3887.27,0.00014337,2]
[337049366,1725378696826,-500.0,0.00014337,2]
[337049367,1725378696835,-500.0,0.00014337,2]
[337049368,1725378696845,-250.96105376,0.00014337,2]
[337049369,1725378696854,-739.33,0.00014337,2]
[337049370,1725378696864,-500.0,0.00014337,2]
[337049371,1725378696874,-500.0,0.00014337,2]
[337049372,1725378696884,-739.33,0.00014337,2]
[337049373,1725378696893,-500.0,0.00014337,2]
[337049374,1725378696903,-739.36,0.00014337,2]
[337049375,1725378696913,-500.0,0.00014337,2]
[337049376,1725378696922,-500.0,0.00014337,2]
[337049377,1725378696931,-500.0,0.00014337,2]
[337049378,1725378696941,-500.0,0.00014337,2]
[337049379,1725378696953,-500.0,0.00014337,2]
[337049380,1725378696962,-500.0,0.00014337,2]
[337049381,1725378696972,-174.79135929,0.00014337,2]
[337049382,1725378696981,-500.0,0.00014337,2]
[337049383,1725378696991,-500.0,0.00014337,2]
[337049384,1725378697001,-500.0,0.00014337,2]
[337049385,1725378697010,-3260.3,0.00014337,2]
[337049386,1725378697020,-500.0,0.00014337,2]
[337049387,1725378697029,-3260.3,0.00014337,2]
[337049388,1725378697040,-500.0,0.00014337,2]
[337049389,1725378697050,-3260.3,0.00014337,2]
[337049390,1725378697059,-500.0,0.00014337,2]
[337049391,1725378697070,-1713.27133035,0.00014337,2]
[337049392,1725378697085,-1038.78311956,0.00014337,2]
[337049393,1725378697097,-333.01477701,0.00014337,2]
[337049394,1725378697108,-175.23077308,0.00014337,2]
[337049395,1725378697118,-500.0,0.00014337,2]
[337049396,1725378697127,-540.06935223,0.00014337,2]
[337049397,1725378697138,-2720.23064777,0.00014337,2]
[337049398,1725378697147,-3260.3,0.00014337,2]
[337049399,1725378697155,-502.47830735,0.00014337,2]
[337049400,1725378697164,-997.34699747,0.00014337,2]
[337049401,1725378697276,-136.01300253,0.00014337,2]
[337049402,1725378697285,-3260.3,0.00014337,2]
[337049403,1725378697295,-1133.36,0.00014337,2]
[337049404,1725378697304,-1133.36,0.00014337,2]
[337049405,1725378697315,-3260.3,0.00014337,2]
[337049406,1725378697324,-3260.3,0.00014337,2]
[337049407,1725378697333,-3260.3,0.00014337,2]
[337049408,1725378697342,-500.0,0.00014337,2]
[337049409,1725378697352,-3260.3,0.00014337,2]
[337049410,1725378697362,-500.0,0.00014337,2]
[337049411,1725378697371,-3260.3,0.00014337,2]
[337049412,1725378697381,-6238.32,0.00014337,2]
[337049413,1725378697390,-388.09712754,0.00014337,2]
[337049414,1725378697400,-6238.32,0.00014337,2]
[337049415,1725378697410,-3260.37487249,0.00014337,2]
[337049416,1725378697419,-6238.32,0.00014337,2]
[337049417,1725378697428,-6238.32,0.00014337,2]
[337049418,1725378697439,-6238.32,0.00014337,2]
[337049419,1725378697448,-6238.32,0.00014337,2]
[337049420,1725378697457,-6238.32,0.00014337,2]
[337049421,1725378697466,-6238.32,0.00014337,2]
[337049422,1725378697475,-1403.67970217,0.00014337,2]
[337049423,1725378697488,-831.659,0.00014337,2]
[337049424,1725378697500,-788.36999,0.00014337,2]
[337049425,1725378704957,550.0,0.00011,2]
[337049426,1725378705168,600.0,0.00013,2]
[337049427,1725378709171,710.25,0.0001151,2]
[337049429,1725378737393,3689.0,0.000102,5]
[337049431,1725379326335,674.73,0.00011336,2]
[337049432,1725379360655,340.22,0.00010959,2]
[337049433,1725379767505,-379.4859773,0.00013035,2]
[337049434,1725379767539,-379.48597728,0.00013044,2]
[337049435,1725379767571,-379.48597728,0.00013053,2]
[337049436,1725379767602,-248.31,0.00013108,2]
[337049437,1725379767634,-183.53,0.00013133,2]
[337049438,1725379767667,-300.0,0.00013152,2]
[337049439,1725379767699,-3596.15727591,0.00013153,2]
[337049440,1725379767736,-837.85012409,0.00013153,2]
[337049441,1725379767767,-4628.60508368,0.00013153,2]
[337049442,1725379767803,-5088.34701148,0.00013153,2]
[337049443,1725379791688,500.0,0.00010959,2]
[337049444,1725379792035,718.0,0.00010959,2]
[337049445,1725379792107,500.0,0.00010959,2]
[337049446,1725379792968,500.0,0.00010959,2]
[337049447,1725379793278,500.0,0.00010959,2]
[337049448,1725379793616,503.0,0.00010959,2]
[337049464,1725379832412,-800.0,0.00013175,2]
[337049465,1725379832423,-250.0,0.00013247,2]
[337049466,1725379832433,-1864.0164,0.00013253,2]
[337049467,1725379832491,-15243.0936,0.00013253,2]
[337049468,1725379832501,-200.0,0.00013297,2]
[337049469,1725379832510,-197.55,0.00013309,2]
[337049470,1725379832520,-3217.95947339,0.00013309,2]
[337049471,1725379832534,-150.0,0.00013412,2]
[337049472,1725379832549,-170.511,0.00013414,2]
[337049473,1725379832559,-28221.39,0.00013414,2]
[337049474,1725379832569,-14977.44,0.00013414,2]
[337049475,1725379832578,-15206.66,0.00013414,2]
[337049476,1725379832588,-3537.23,0.00013414,2]
[337049477,1725379832598,-674.73,0.00013599,2]
[337049478,1725379832608,-184.19,0.00013699,2]
[337049479,1725379832617,-209.12438859,0.00014134,2]
[337049480,1725379832626,-2709.3243,0.00014138,2]
[337049481,1725379832636,-1910.03696891,0.000142,2]
[337049482,1725379832646,-30106.76026911,0.00014233,2]
[337049484,1725379832658,-8912.51863089,0.00014233,2]
[337049486,1725379832667,-10382.3295,0.00014234,2]
[337049488,1725379832677,-209.12438859,0.00014235,2]
[337049490,1725379832686,-2206.96601445,0.00014329,2]
[337049491,1725379832696,-937.09,0.0001433,2]
[337049493,1725379832706,-4367.46,0.0001433,2]
[337049495,1725379832716,-500.0,0.0001433,2]
[337049497,1725379832725,-1853.11146607,0.0001433,2]
[337049500,1725379832741,-6418.32853393,0.0001433,2]
[337049502,1725379832751,-10526.66,0.0001433,2]
[337049504,1725379832760,-500.0,0.0001433,2]
[337049506,1725379832770,-2505.97,0.0001433,2]
[337049508,1725379832783,-1966.49,0.0001433,2]
[337049510,1725379832792,-10398.4,0.0001433,2]
[337049512,1725379832803,-3823.68,0.0001433,2]
[337049514,1725379832812,-1452.8,0.0001433,2]
[337049516,1725379832821,-871.05,0.0001433,2]
[337049518,1725379832831,-500.0,0.0001433,2]
[337049519,1725379832840,-335.11773299,0.0001433,2]
[337049521,1725379832850,-587.84278679,0.0001433,2]
[337049523,1725379832859,-4413.9320289,0.0001433,2]
[337049525,1725379832869,-265.14328063,0.00014331,2]
[337049526,1725379832879,-1696.17,0.00014331,2]
[337049527,1725379832889,-2468.46,0.00014331,2]
[337049528,1725379832899,-634.84,0.00014331,2]
[337049529,1725379832909,-500.0,0.00014331,2]
[337049530,1725379832918,-1406.74,0.00014331,2]
[337049531,1725379832928,-500.0,0.00014331,2]
[337049532,1725379832937,-500.0,0.00014331,2]
[337049533,1725379832947,-500.0,0.00014331,2]
[337049534,1725379832957,-500.0,0.00014331,2]
[337049535,1725379832966,-2334.6,0.00014331,2]
[337049536,1725379832976,-1173.67,0.00014331,2]
[337049537,1725379832985,-155.37350363,0.00014331,2]
[337049538,1725379832994,-500.0,0.00014331,2]
[337049539,1725379833004,-523.12,0.00014331,2]
[337049540,1725379833013,-500.0,0.00014331,2]
[337049541,1725379833024,-2836.61,0.00014331,2]
[337049542,1725379833033,-500.0,0.00014331,2]
[337049543,1725379833043,-500.0,0.00014331,2]
[337049544,1725379833053,-1148.56,0.00014331,2]
[337049545,1725379833063,-1280.46,0.00014331,2]
[337049546,1725379833073,-594.43,0.00014331,2]
[337049547,1725379833083,-1222.66,0.00014331,2]
[337049548,1725379833092,-500.0,0.00014331,2]
[337049549,1725379833102,-500.0,0.00014331,2]
[337049550,1725379833111,-500.0,0.00014331,2]
[337049551,1725379833121,-500.0,0.00014331,2]
[337049552,1725379833131,-2443.16,0.00014331,2]
[337049553,1725379833141,-1147.23,0.00014331,2]
[337049554,1725379833150,-1169.22,0.00014331,2]
[337049555,1725379833160,-500.0,0.00014331,2]
[337049556,1725379833171,-2164.32,0.00014331,2]
[337049557,1725379833181,-538.79,0.00014331,2]
[337049558,1725379833191,-500.0,0.00014331,2]
[337049559,1725379833200,-500.0,0.00014331,2]
[337049560,1725379833210,-500.0,0.00014331,2]
[337049561,1725379833219,-500.0,0.00014331,2]
[337049562,1725379833229,-500.0,0.00014331,2]
[337049563,1725379833239,-2161.18,0.00014331,2]
[337049564,1725379833248,-500.0,0.00014331,2]
[337049565,1725379833258,-510.37111207,0.00014331,2]
[337049566,1725379833267,-2510.27,0.00014331,2]
[337049567,1725379833278,-594.29,0.00014331,2]
[337049568,1725379833288,-575.63790297,0.00014331,2]
[337049569,1725379833299,-2460.51,0.00014331,2]
[337049570,1725379833311,-500.0,0.00014331,2]
[337049571,1725379833320,-505.59000856,0.00014331,2]
[337049572,1725379833330,-500.0,0.00014331,2]
[337049573,1725379833341,-500.0,0.00014331,2]
[337049574,1725379833352,-500.0,0.00014331,2]
[337049575,1725379833362,-500.0,0.00014331,2]
[337049576,1725379833372,-500.0,0.00014331,2]
[337049577,1725379833383,-500.0,0.00014331,2]
[337049578,1725379833394,-1318.93,0.00014331,2]
[337049579,1725379833405,-1281.74,0.00014331,2]
[337049580,1725379833415,-278.07305669,0.00014331,2]
[337049581,1725379833424,-500.0,0.00014331,2]
[337049582,1725379833435,-500.0,0.00014331,2]
[337049583,1725379833444,-500.0,0.00014331,2]
[337049584,1725379833454,-3415.4,0.00014331,2]
[337049585,1725379833463,-532.81,0.00014331,2]
[337049586,1725379833473,-500.0,0.00014331,2]
[337049587,1725379833483,-511.75,0.00014331,2]
[337049588,1725379833493,-500.0,0.00014331,2]
[337049589,1725379833503,-6878.98,0.00014331,2]
[337049590,1725379833513,-500.0,0.00014331,2]
[337049591,1725379833523,-1190.12,0.00014331,2]
[337049592,1725379833533,-500.0,0.00014331,2]
[337049593,1725379833543,-500.0,0.00014331,2]
[337049594,1725379833552,-815.92,0.00014331,2]
[337049595,1725379833562,-850.11,0.00014331,2]
[337049596,1725379833571,-500.0,0.00014331,2]
[337049597,1725379833582,-2200.73,0.00014331,2]
[337049598,1725379833591,-1118.15,0.00014331,2]
[337049599,1725379833600,-500.0,0.00014331,2]
[337049600,1725379833610,-937.09,0.00014331,2]
[337049601,1725379833619,-937.09,0.00014331,2]
[337049602,1725379833629,-2587.68,0.00014331,2]
[337049603,1725379833638,-6393.61,0.00014331,2]
[337049604,1725379833648,-500.0,0.00014331,2]
[337049605,1725379833658,-598.86,0.00014331,2]
[337049606,1725379833667,-17893.52,0.00014331,2]
[337049607,1725379833676,-922.28,0.00014331,2]
[337049608,1725379833686,-15427.93,0.00014331,2]
[337049609,1725379833695,-500.0,0.00014331,2]
[337049610,1725379833706,-6012.35,0.00014331,2]
[337049611,1725379833717,-501.37030176,0.00014331,2]
[337049612,1725379833727,-320.96874212,0.00014331,2]
[337049613,1725379833736,-500.0,0.00014331,2]
[337049614,1725379833745,-500.0,0.00014331,2]
[337049615,1725379833755,-1424.04,0.00014331,2]
[337049616,1725379833764,-7832.49,0.00014331,2]
[337049617,1725379833776,-7807.68,0.00014331,2]
[337049618,1725379833786,-500.0,0.00014331,2]
[337049619,1725379833796,-500.0,0.00014331,2]
[337049620,1725379833806,-500.0,0.00014331,2]
[337049621,1725379833815,-11482.29,0.00014331,2]
[337049622,1725379833825,-532.02,0.00014331,2]
[337049623,1725379833835,-500.0,0.00014331,2]
[337049624,1725379833845,-500.0,0.00014331,2]
[337049625,1725379833854,-500.0,0.00014331,2]
[337049626,1725379833863,-500.0,0.00014331,2]
[337049627,1725379833873,-2983.81,0.00014331,2]
[337049628,1725379833883,-500.0,0.00014331,2]
[337049629,1725379833892,-500.0,0.00014331,2]
[337049630,1725379833902,-176.19008571,0.00014331,2]
[337049631,1725379833911,-911.22,0.00014331,2]
[337049632,1725379833921,-4367.46,0.00014331,2]
[337049633,1725379833930,-4367.46,0.00014331,2]
[337049634,1725379833939,-4367.46,0.00014331,2]
[337049635,1725379833949,-4367.46,0.00014331,2]
[337049636,1725379833959,-1143.88,0.00014331,2]
[337049637,1725379833968,-884.47,0.00014331,2]
[337049638,1725379833977,-500.0,0.00014331,2]
[337049639,1725379833987,-500.0,0.00014331,2]
[337049640,1725379833996,-500.0,0.00014331,2]
[337049641,1725379834005,-500.0,0.00014331,2]
[337049642,1725379834015,-500.0,0.00014331,2]
[337049643,1725379834026,-500.0,0.00014331,2]
[337049644,1725379834035,-500.0,0.00014331,2]
[337049645,1725379834044,-500.0,0.00014331,2]
[337049646,1725379834054,-500.0,0.00014331,2]
[337049647,1725379834063,-500.0,0.00014331,2]
[337049648,1725379834073,-500.0,0.00014331,2]
[337049649,1725379834083,-4378.3,0.00014331,2]
[337049650,1725379834092,-500.0,0.00014331,2]
[337049651,1725379834102,-8271.44,0.00014331,2]
[337049652,1725379834112,-8271.44,0.00014331,2]
[337049653,1725379834121,-500.0,0.00014331,2]
[337049654,1725379834131,-500.0,0.00014331,2]
[337049655,1725379834140,-666.72,0.00014331,2]
[337049656,1725379834150,-500.0,0.00014331,2]
[337049657,1725379834160,-500.0,0.00014331,2]
[337049658,1725379834169,-10069.3,0.00014331,2]
[337049659,1725379834179,-2807.26,0.00014331,2]
[337049660,1725379834188,-10526.66,0.00014331,2]
[337049661,1725379834197,-10526.66,0.00014331,2]
[337049662,1725379834207,-289.83681279,0.00014331,2]
[337049663,1725379834219,-2587.51,0.00014331,2]
[337049664,1725379834229,-500.0,0.00014331,2]
[337049665,1725379834239,-500.0,0.00014331,2]
[337049666,1725379834248,-500.0,0.00014331,2]
[337049667,1725379834258,-500.0,0.00014331,2]
[337049668,1725379834268,-500.0,0.00014331,2]
[337049669,1725379834278,-500.0,0.00014331,2]
[337049670,1725379834288,-500.0,0.00014331,2]
[337049671,1725379834298,-500.0,0.00014331,2]
[337049672,1725379834309,-2764.25,0.00014331,2]
[337049673,1725379834319,-2524.97,0.00014331,2]
[337049674,1725379834329,-2040.31,0.00014331,2]
[337049675,1725379834339,-5437.38,0.00014331,2]
[337049676,1725379834350,-500.0,0.00014331,2]
[337049677,1725379834359,-500.0,0.00014331,2]
[337049678,1725379834369,-184.99046424,0.00014331,2]
[337049679,1725379834379,-13646.4,0.00014331,2]
[337049680,1725379834390,-5543.8,0.00014331,2]
[337049681,1725379834401,-545.44316796,0.00014331,2]
[337049682,1725379834411,-2505.97,0.00014331,2]
[337049683,1725379834420,-2505.97,0.00014331,2]
[337049684,1725379834430,-1966.49,0.00014331,2]
[337049685,1725379834439,-1966.49,0.00014331,2]
[337049686,1725379834449,-1966.49,0.00014331,2]
[337049687,1725379834458,-1966.49,0.00014331,2]
[337049688,1725379834467,-25362.53,0.00014331,2]
[337049689,1725379834477,-2694.66,0.00014331,2]
[337049690,1725379834487,-506.21570488,0.00014331,2]
[337049691,1725379834496,-1839.31,0.00014331,2]
[337049692,1725379834506,-10398.4,0.00014331,2]
[337049693,1725379834516,-500.0,0.00014331,2]
[337049694,1725379834526,-10398.4,0.00014331,2]
[337049695,1725379834536,-2085.93,0.00014331,2]
[337049696,1725379834545,-579.17,0.00014331,2]
[337049697,1725379834554,-7224.18,0.00014331,2]
[337049698,1725379834564,-999.77,0.00014331,2]
[337049699,1725379834573,-500.0,0.00014331,2]
[337049700,1725379834583,-505.77649117,0.00014331,2]
[337049701,1725379834592,-1204.21,0.00014331,2]
[337049702,1725379834601,-500.0,0.00014331,2]
[337049703,1725379834611,-500.0,0.00014331,2]
[337049704,1725379834620,-510.3159508,0.00014331,2]
[337049705,1725379834634,-2500.07,0.00014331,2]
[337049706,1725379834643,-14288.44,0.00014331,2]
[337049707,1725379834653,-3823.68,0.00014331,2]
[337049708,1725379834663,-3823.68,0.00014331,2]
[337049709,1725379834673,-500.0,0.00014331,2]
[337049710,1725379834683,-1902.07,0.00014331,2]
[337049711,1725379834693,-2242.54,0.00014331,2]
[337049712,1725379834703,-500.0,0.00014331,2]
[337049713,1725379834713,-2170.26,0.00014331,2]
[337049714,1725379834723,-4117.89,0.00014331,2]
[337049715,1725379834733,-1242.84,0.00014331,2]
[337049716,1725379834742,-1452.8,0.00014331,2]
[337049717,1725379834834,-1452.8,0.00014331,2]